fUSD/lending_fUSD_20241220
["ID","MTS","AMOUNT","RATE_DAILY","PERIOD"]
[346098216,1734705073421,-500.0,0.00022191,4]
[346098217,1734705073435,-500.0,0.00022191,4]
[346098218,1734705073445,-477.436676,0.00022191,7]
[346098219,1734705073455,-477.436676,0.00022191,7]
[346098220,1734705073465,-500.0,0.00022191,4]
[346098221,1734705073474,-500.0,0.00022191,4]
[346098222,1734705073484,-575.74,0.00022191,4]
[346098223,1734705073493,-500.0,0.00022191,4]
[346098224,1734705073502,-500.0,0.00022191,4]
[346098225,1734705073511,-500.0,0.00022191,4]
[346098226,1734705073521,-626.11,0.00022191,4]
[346098227,1734705073530,-500.0,0.00022191,4]
[346098228,1734705073539,-249.76073288,0.00022191,4]
[346098229,1734705073549,-500.0,0.00022191,4]
[346098230,1734705073558,-176.8057123,0.00022191,4]
[346098231,1734705073567,-573.298386,0.00022191,7]
[346098232,1734705073577,-573.298386,0.00022191,7]
[346098233,1734705073586,-500.0,0.00022191,4]
[346098234,1734705073595,-500.0,0.00022191,4]
[346098235,1734705073605,-363.18364575,0.00022191,4]
[346098236,1734705073614,-389.11819751,0.00022191,4]
[346098237,1734705073623,-892.44,0.00022191,4]
[346098238,1734705073632,-867.32,0.00022191,4]
[346098239,1734705073641,-573.298386,0.00022191,7]
[346098240,1734705073651,-573.298386,0.00022191,7]
[346098241,1734705073660,-500.0,0.00022191,4]
[346098242,1734705073669,-500.0,0.00022191,4]
[346098243,1734705073683,-500.0,0.00022191,4]
[346098244,1734705073692,-572.67,0.00022191,4]
[346098245,1734705073701,-500.0,0.00022191,4]
[346098246,1734705073710,-500.0,0.00022191,4]
[346098247,1734705073720,-501.2197762,0.00022191,4]
[346098248,1734705073729,-500.0,0.00022191,4]
[346098249,1734705073739,-642.2,0.00022191,4]
[346098250,1734705073748,-882.96,0.00022191,4]
[346098251,1734705073757,-628.87,0.00022191,4]
[346098252,1734705073766,-500.0,0.00022191,4]
[346098253,1734705073775,-500.0,0.00022191,4]
[346098254,1734705073785,-500.0,0.00022191,4]
[346098255,1734705073795,-502.08315223,0.00022191,4]
[346098256,1734705073804,-500.0,0.00022191,4]
[346098257,1734705073813,-630.74254797,0.00022191,4]
[346098258,1734705073823,-531.92,0.00022191,4]
[346098259,1734705073832,-500.0,0.00022191,4]
[346098260,1734705073841,-500.0,0.00022191,4]
[346098261,1734705073850,-500.0,0.00022191,4]
[346098262,1734705073859,-1531.54,0.00022191,4]
[346098263,1734705073868,-151.0,0.00022191,7]
[346098264,1734705073878,-151.0,0.00022191,7]
[346098265,1734705073887,-797.56,0.00022191,4]
[346098266,1734705073896,-500.0,0.00022191,4]
[346098267,1734705073905,-573.13,0.00022191,4]
[346098268,1734705073914,-500.0,0.00022191,4]
[346098269,1734705073925,-500.0,0.00022191,4]
[346098270,1734705073935,-500.0,0.00022191,4]
[346098271,1734705073944,-500.0,0.00022191,4]
[346098272,1734705073954,-1191.56,0.00022191,4]
[346098273,1734705073964,-500.0,0.00022191,4]
[346098274,1734705073973,-898.63,0.00022191,4]
[346098275,1734705073983,-1462.97,0.00022191,4]
[346098276,1734705073992,-500.0,0.00022191,4]
[346098277,1734705074002,-690.32,0.00022191,4]
[346098278,1734705074012,-608.08248392,0.00022191,4]
[346098279,1734705074022,-500.0,0.00022191,4]
[346098280,1734705074031,-500.0,0.00022191,4]
[346098281,1734705074040,-895.67,0.00022191,4]
[346098282,1734705074050,-151.0,0.00022191,7]
[346098283,1734705074060,-500.0,0.00022191,4]
[346098284,1734705074069,-151.0,0.00022191,7]
[346098285,1734705074079,-510.44119678,0.00022191,4]
[346098286,1734705074088,-500.0,0.00022191,4]
[346098287,1734705074098,-2453.25,0.00022191,4]
[346098288,1734705074167,-500.0,0.00022191,4]
[346098289,1734705074179,-500.0,0.00022191,4]
[346098290,1734705074188,-500.0,0.00022191,4]
[346098291,1734705074198,-500.0,0.00022191,4]
[346098292,1734705074208,-503.86581414,0.00022191,4]
[346098293,1734705074217,-500.0,0.00022191,4]
[346098294,1734705074227,-500.0,0.00022191,4]
[346098295,1734705074237,-596.16,0.00022191,4]
[346098296,1734705074246,-500.0,0.00022191,4]
[346098297,1734705074255,-500.0,0.00022191,4]
[346098298,1734705074265,-500.0,0.00022191,4]
[346098299,1734705074275,-2002.3,0.00022191,4]
[346098300,1734705074284,-500.0,0.00022191,4]
[346098301,1734705074295,-500.0,0.00022191,4]
[346098302,1734705074304,-500.0,0.00022191,4]
[346098303,1734705074313,-500.0,0.00022191,4]
[346098304,1734705074323,-329.58547379,0.00022191,4]
[346098305,1734705074332,-500.0,0.00022191,4]
[346098306,1734705074343,-166.979139,0.00022191,7]
[346098307,1734705074352,-500.0,0.00022191,4]
[346098308,1734705074361,-500.0,0.00022191,4]
[346098309,1734705074370,-2126.04,0.00022191,4]
[346098310,1734705074380,-166.979139,0.00022191,7]
[346098311,1734705074389,-505.82288049,0.00022191,4]
[346098312,1734705074398,-1149.07,0.00022191,4]
[346098313,1734705074407,-151.0,0.00022191,7]
[346098314,1734705074416,-151.0,0.00022191,7]
[346098315,1734705074428,-1147.67,0.00022191,4]
[346098316,1734705074437,-501.15680117,0.00022191,4]
[346098317,1734705074448,-1974.63,0.00022191,4]
[346098318,1734705074457,-290.955859,0.00022191,7]
[346098319,1734705074467,-922.26,0.00022191,4]
[346098320,1734705074477,-585.88,0.00022191,4]
[346098321,1734705074486,-645.53,0.00022191,4]
[346098322,1734705074495,-500.0,0.00022191,4]
[346098323,1734705074504,-1312.39,0.00022191,4]
[346098324,1734705074513,-1995.26,0.00022191,4]
[346098325,1734705074522,-507.81231963,0.00022191,4]
[346098326,1734705074531,-500.0,0.00022191,4]
[346098327,1734705074540,-626.7,0.00022191,4]
[346098328,1734705074550,-290.955859,0.00022191,7]
[346098329,1734705074559,-591.96,0.00022191,4]
[346098330,1734705074568,-502.59418044,0.00022191,4]
[346098331,1734705074577,-500.0,0.00022191,4]
[346098332,1734705074586,-500.0,0.00022191,4]
[346098333,1734705074595,-500.0,0.00022191,4]
[346098334,1734705074604,-500.0,0.00022191,4]
[346098335,1734705074613,-500.0,0.00022191,4]
[346098336,1734705074623,-500.0,0.00022191,4]
[346098337,1734705074632,-500.0,0.00022191,4]
[346098338,1734705074641,-500.0,0.00022191,4]
[346098339,1734705074650,-4286.95,0.00022191,4]
[346098340,1734705074659,-1869.88,0.00022191,4]
[346098341,1734705074668,-1582.21,0.00022191,4]
[346098342,1734705074679,-500.0,0.00022191,4]
[346098343,1734705074688,-1996.44,0.00022191,4]
[346098344,1734705074697,-918.42,0.00022191,4]
[346098345,1734705074706,-500.0,0.00022191,4]
[346098346,1734705074715,-500.0,0.00022191,4]
[346098347,1734705074724,-500.0,0.00022191,4]
[346098348,1734705074733,-500.0,0.00022191,4]
[346098349,1734705074742,-2729.02,0.00022191,4]
[346098350,1734705074751,-500.0,0.00022191,4]
[346098351,1734705074760,-901.44,0.00022191,4]
[346098352,1734705074769,-500.0,0.00022191,4]
[346098353,1734705074778,-500.0,0.00022191,4]
[346098354,1734705074787,-576.4,0.00022191,4]
[346098355,1734705074797,-500.0,0.00022191,4]
[346098356,1734705074806,-500.0,0.00022191,4]
[346098357,1734705074815,-2844.5,0.00022191,4]
[346098358,1734705074825,-500.0,0.00022191,4]
[346098359,1734705074835,-500.0,0.00022191,4]
[346098360,1734705074845,-2473.03,0.00022191,4]
[346098361,1734705074854,-4012.09,0.00022191,4]
[346098362,1734705074864,-500.0,0.00022191,4]
[346098363,1734705074874,-500.0,0.00022191,4]
[346098364,1734705074884,-500.0,0.00022191,4]
[346098365,1734705074894,-500.0,0.00022191,4]
[346098366,1734705074904,-542.96,0.00022191,4]
[346098367,1734705074913,-516.15,0.00022191,4]
[346098368,1734705074924,-877.15,0.00022191,4]
[346098369,1734705074935,-1483.16,0.00022191,4]
[346098370,1734705074945,-500.0,0.00022191,4]
[346098371,1734705074955,-189.926368,0.00022191,7]
[346098372,1734705074965,-500.0,0.00022191,4]
[346098373,1734705074974,-3922.15,0.00022191,4]
[346098374,1734705074984,-500.0,0.00022191,4]
[346098375,1734705074994,-881.23,0.00022191,4]
[346098376,1734705075004,-463.283799,0.00022191,7]
[346098377,1734705075014,-189.926375,0.00022191,7]
[346098378,1734705075024,-502.97479246,0.00022191,4]
[346098379,1734705075034,-2575.39,0.00022191,4]
[346098380,1734705075044,-14313.01,0.00022191,4]
[346098381,1734705075053,-500.0,0.00022191,4]
[346098382,1734705075063,-500.0,0.00022191,4]
[346098383,1734705075073,-463.283808,0.00022191,7]
[346098384,1734705075085,-500.0,0.00022191,4]
[346098385,1734705075095,-550.65,0.00022191,4]
[346098386,1734705075105,-5233.77,0.00022191,4]
[346098387,1734705075115,-1199.62,0.00022191,4]
[346098388,1734705075126,-526.33,0.00022191,4]
[346098389,1734705075136,-1198.28,0.00022191,4]
[346098390,1734705075147,-500.0,0.00022191,4]
[346098391,1734705075156,-500.0,0.00022191,4]
[346098392,1734705075166,-822.83,0.00022191,4]
[346098393,1734705075178,-500.0,0.00022191,4]
[346098394,1734705075187,-500.0,0.00022191,4]
[346098395,1734705075199,-1305.96,0.00022191,4]
[346098396,1734705075209,-500.0,0.00022191,4]
[346098397,1734705075218,-500.0,0.00022191,4]
[346098398,1734705075228,-500.0,0.00022191,4]
[346098399,1734705075238,-2054.82,0.00022191,4]
[346098400,1734705075248,-500.0,0.00022191,4]
[346098401,1734705075257,-781.1,0.00022191,4]
[346098402,1734705075268,-500.0,0.00022191,4]
[346098403,1734705075278,-500.0,0.00022191,4]
[346098404,1734705075291,-2976.46,0.00022191,4]
[346098405,1734705075301,-532.86,0.00022191,4]
[346098406,1734705075314,-1376.74,0.00022191,4]
[346098407,1734705075329,-509.53251081,0.00022191,4]
[346098408,1734705075340,-1406.29,0.00022191,4]
[346098409,1734705075350,-500.0,0.00022191,4]
[346098410,1734705075361,-187.34348319,0.00022191,4]
[346098411,1734705075371,-503.17510175,0.00022191,4]
[346098412,1734705075382,-732.83,0.00022191,4]
[346098413,1734705075392,-2019.8,0.00022191,4]
[346098414,1734705075402,-500.0,0.00022191,4]
[346098415,1734705075412,-500.0,0.00022191,4]
[346098416,1734705075422,-594.71,0.00022191,4]
[346098417,1734705075437,-623.99,0.00022191,4]
[346098418,1734705075447,-358.13378,0.00022191,7]
[346098419,1734705075457,-14207.49,0.00022191,4]
[346098420,1734705075468,-207.565158,0.00022191,4]
[346098421,1734705075478,-3380.89,0.00022191,4]
[346098422,1734705075488,-500.0,0.00022191,4]
[346098423,1734705075498,-174.413806,0.00022191,7]
[346098424,1734705075508,-500.0,0.00022191,4]
[346098425,1734705075518,-584.56,0.00022191,4]
[346098426,1734705075528,-1870.48,0.00022191,4]
[346098427,1734705075538,-2641.01,0.00022191,4]
[346098428,1734705075548,-1151.74,0.00022191,4]
[346098429,1734705075559,-358.133788,0.00022191,7]
[346098430,1734705075570,-1068.83,0.00022191,4]
[346098431,1734705075580,-500.0,0.00022191,4]
[346098432,1734705075591,-174.413812,0.00022191,7]
[346098433,1734705075602,-500.0,0.00022191,4]
[346098434,1734705075612,-2387.91,0.00022191,4]
[346098435,1734705075622,-500.0,0.00022191,4]
[346098436,1734705075633,-2569.35,0.00022191,4]
[346098437,1734705075643,-500.0,0.00022191,4]
[346098438,1734705075654,-500.0,0.00022191,4]
[346098439,1734705075665,-1641.53,0.00022191,4]
[346098440,1734705075679,-7684.97,0.00022191,4]
[346098441,1734705075689,-500.0,0.00022191,4]
[346098442,1734705075700,-500.0,0.00022191,4]
[346098443,1734705075710,-533.91,0.00022191,4]
[346098444,1734705075720,-500.0,0.00022191,4]
[346098445,1734705075731,-1122.02,0.00022191,4]
[346098446,1734705075741,-338.84294961,0.00022191,4]
[346098447,1734705075751,-500.0,0.00022191,4]
[346098448,1734705075762,-500.0,0.00022191,4]
[346098449,1734705075772,-500.0,0.00022191,4]
[346098450,1734705075783,-3739.73,0.00022191,4]
[346098451,1734705075793,-1657.74,0.00022191,4]
[346098452,1734705075804,-500.0,0.00022191,4]
[346098453,1734705075815,-572.34,0.00022191,4]
[346098454,1734705075825,-290.71902458,0.00022191,4]
[346098455,1734705075836,-1002.92,0.00022191,4]
[346098456,1734705075847,-500.0,0.00022191,4]
[346098457,1734705075857,-500.0,0.00022191,4]
[346098458,1734705075867,-500.0,0.00022191,4]
[346098459,1734705075878,-500.0,0.00022191,4]
[346098460,1734705075889,-1449.75,0.00022191,4]
[346098461,1734705075899,-4285.0,0.00022191,4]
[346098462,1734705075910,-509.28092272,0.00022191,4]
[346098463,1734705075921,-500.0,0.00022191,4]
[346098464,1734705075934,-1876.8,0.00022191,4]
[346098465,1734705075947,-500.0,0.00022191,4]
[346098466,1734705075964,-3137.09,0.00022191,4]
[346098467,1734705075981,-500.0,0.00022191,4]
[346098468,1734705075993,-500.0,0.00022191,4]
[346098469,1734705076008,-171.847622,0.00022191,4]
[346098470,1734705076023,-500.0,0.00022191,4]
[346098471,1734705076037,-938.17,0.00022191,4]
[346098472,1734705076052,-500.0,0.00022191,4]
[346098473,1734705076065,-1128.3,0.00022191,4]
[346098474,1734705076076,-500.0,0.00022191,4]
[346098475,1734705076091,-630.09,0.00022191,4]
[346098476,1734705076106,-500.0,0.00022191,4]
[346098477,1734705076120,-500.0,0.00022191,4]
[346098478,1734705076135,-653.61,0.00022191,4]
[346098479,1734705076150,-500.0,0.00022191,4]
[346098480,1734705076165,-1928.85,0.00022191,4]
[346098481,1734705076183,-2099.69,0.00022191,4]
[346098482,1734705076197,-7043.04,0.00022191,4]
[346098483,1734705076211,-500.0,0.00022191,4]
[346098484,1734705076227,-2163.13,0.00022191,4]
[346098485,1734705076239,-500.0,0.00022191,4]
[346098486,1734705076252,-548.73480472,0.00022191,4]
[346098487,1734705076265,-500.0,0.00022191,4]
[346098488,1734705076278,-500.0,0.00022191,4]
[346098489,1734705076297,-500.0,0.00022191,4]
[346098490,1734705076309,-970.03,0.00022191,4]
[346098491,1734705076321,-500.0,0.00022191,4]
[346098492,1734705076336,-2134.52,0.00022191,4]
[346098493,1734705076349,-500.0,0.00022191,4]
[346098494,1734705076361,-500.0,0.00022191,4]
[346098495,1734705076376,-1668.69,0.00022191,4]
[346098496,1734705076389,-500.0,0.00022191,4]
[346098497,1734705076402,-2369.63,0.00022191,4]
[346098498,1734705076413,-500.0,0.00022191,4]
[346098499,1734705076428,-500.0,0.00022191,4]
[346098500,1734705076441,-500.0,0.00022191,4]
[346098501,1734705076454,-500.0,0.00022191,4]
[346098502,1734705076467,-500.0,0.00022191,4]
[346098503,1734705076480,-500.0,0.00022191,4]
[346098504,1734705076493,-500.0,0.00022191,4]
[346098505,1734705076505,-500.0,0.00022191,4]
[346098506,1734705076518,-500.0,0.00022191,4]
[346098507,1734705076530,-500.0,0.00022191,4]
[346098508,1734705076542,-500.0,0.00022191,4]
[346098509,1734705076554,-653.02,0.00022191,4]
[346098510,1734705076566,-500.0,0.00022191,4]
[346098511,1734705076579,-500.0,0.00022191,4]
[346098512,1734705076592,-500.0,0.00022191,4]
[346098513,1734705076604,-505.43,0.00022191,4]
[346098514,1734705076616,-1168.08,0.00022191,4]
[346098515,1734705076628,-500.0,0.00022191,4]
[346098516,1734705076641,-500.0,0.00022191,4]
[346098517,1734705076652,-533.99,0.00022191,4]
[346098518,1734705076665,-709.06,0.00022191,4]
[346098519,1734705076678,-500.0,0.00022191,4]
[346098520,1734705076691,-1659.64,0.00022191,4]
[346098521,1734705076703,-500.0,0.00022191,4]
[346098522,1734705076716,-729.79,0.00022191,4]
[346098523,1734705076729,-500.0,0.00022191,4]
[346098524,1734705076742,-500.0,0.00022191,4]
[346098525,1734705076754,-500.0,0.00022191,4]
[346098526,1734705076767,-875.71,0.00022191,4]
[346098527,1734705076781,-644.22,0.00022191,4]
[346098528,1734705076793,-560.49,0.00022191,4]
[346098529,1734705076806,-500.0,0.00022191,4]
[346098530,1734705076819,-11283.25,0.00022191,4]
[346098531,1734705076832,-500.0,0.00022191,4]
[346098532,1734705076844,-500.0,0.00022191,4]
[346098533,1734705076857,-500.0,0.00022191,4]
[346098534,1734705076869,-500.0,0.00022191,4]
[346098535,1734705076881,-1169.27,0.00022191,4]
[346098536,1734705076894,-501.90814169,0.00022191,4]
[346098537,1734705076907,-500.0,0.00022191,4]
[346098538,1734705076920,-500.0,0.00022191,4]
[346098539,1734705076936,-1677.99633,0.00022191,7]
[346098540,1734705076950,-500.0,0.00022191,4]
[346098541,1734705076962,-500.0,0.00022191,4]
[346098542,1734705076977,-1083.29,0.00022191,4]
[346098543,1734705076991,-500.0,0.00022191,4]
[346098544,1734705077005,-1374.41,0.00022191,4]
[346098545,1734705077019,-500.0,0.00022191,4]
[346098546,1734705077031,-1677.99634,0.00022191,7]
[346098547,1734705077045,-500.0,0.00022191,4]
[346098548,1734705077058,-500.0,0.00022191,4]
[346098549,1734705077072,-500.0,0.00022191,4]
[346098550,1734705077085,-500.0,0.00022191,4]
[346098551,1734705077097,-500.0,0.00022191,4]
[346098552,1734705077109,-500.0,0.00022191,4]
[346098553,1734705077122,-500.0,0.00022191,4]
[346098554,1734705077135,-1644.02,0.00022191,4]
[346098555,1734705077147,-766.85,0.00022191,4]
[346098556,1734705077158,-501.97447794,0.00022191,4]
[346098557,1734705077169,-1990.15,0.00022191,4]
[346098558,1734705077186,-500.0,0.00022191,4]
[346098559,1734705077198,-500.0,0.00022191,4]
[346098560,1734705077209,-1025.82,0.00022191,4]
[346098561,1734705077222,-1150.78,0.00022191,4]
[346098562,1734705077233,-500.0,0.00022191,4]
[346098563,1734705077244,-500.0,0.00022191,4]
[346098564,1734705077255,-500.65292537,0.00022191,4]
[346098565,1734705077268,-500.0,0.00022191,4]
[346098566,1734705077280,-500.0,0.00022191,4]
[346098567,1734705077293,-501.3749317,0.00022191,4]
[346098568,1734705077306,-626.0,0.00022191,4]
[346098569,1734705077317,-2550.51,0.00022191,4]
[346098570,1734705077330,-500.0,0.00022191,4]
[346098571,1734705077342,-500.0,0.00022191,4]
[346098572,1734705077354,-500.0,0.00022191,4]
[346098573,1734705077367,-1894.92,0.00022191,4]
[346098574,1734705077379,-500.0,0.00022191,4]
[346098575,1734705077391,-500.0,0.00022191,4]
[346098576,1734705077403,-1717.15,0.00022191,4]
[346098577,1734705077415,-777.61,0.00022191,4]
[346098578,1734705077430,-500.0,0.00022191,4]
[346098579,1734705077441,-2160.93,0.00022191,4]
[346098580,1734705077453,-500.0,0.00022191,3]
[346098581,1734705077464,-500.0,0.00022191,4]
[346098582,1734705077475,-500.0,0.00022191,4]
[346098583,1734705077487,-500.0,0.00022191,4]
[346098584,1734705077498,-507.91004919,0.00022191,4]
[346098585,1734705077510,-500.0,0.00022191,4]
[346098586,1734705077523,-500.0,0.00022191,4]
[346098587,1734705077536,-253.58,0.00022191,4]
[346098588,1734705077548,-500.0,0.00022191,4]
[346098589,1734705077565,-500.0,0.00022191,4]
[346098590,1734705077577,-500.0,0.00022191,4]
[346098591,1734705077589,-1472.85,0.00022191,4]
[346098592,1734705077601,-500.0,0.00022191,4]
[346098593,1734705077612,-150.0,0.00022193,2]
[346098594,1734705077624,-150.0,0.00022194,2]
[346098595,1734705077636,-7509.55934225,0.000222,2]
[346098596,1734705077648,-932.43129463,0.00022247,2]
[346098597,1734705077659,-150.0,0.00022272,2]
[346098598,1734705077671,-150.88447418,0.00022274,2]
[346098599,1734705077685,-155.66422561,0.00022274,2]
[346098600,1734705077697,-195.33016278,0.00022274,2]
[346098601,1734705077709,-151.52124903,0.00022274,2]
[346098602,1734705077720,-150.0,0.00022282,2]
[346098603,1734705077732,-1029.0,0.00022284,2]
[346098604,1734705077744,-524.0,0.00022284,2]
[346098605,1734705077756,-150.0,0.00022299,2]
[346098606,1734705077767,-1304.47,0.000223,4]
[346098607,1734705077779,-150.0,0.00022317,2]
[346098608,1734705077791,-932.43129463,0.00022329,2]
[346098609,1734705077802,-150.0,0.00022332,2]
[346098610,1734705077814,-845.12321779,0.00022333,2]
[346098611,1734705077825,-30460.68837365,0.00022334,2]
[346098612,1734705077838,-845.12321779,0.00022335,2]
[346098613,1734705077850,-620.88718439,0.00022336,2]
[346098614,1734705077861,-1500.0,0.00022337,2]
[346098615,1734705077873,-5698.2477427,0.00022338,2]
[346098616,1734705077885,-212223.69402465,0.00022338,2]
[346098617,1734705077897,-212223.69402465,0.00022338,2]
[346098618,1734705077909,-15212.65858269,0.00022339,2]
[346098619,1734705077921,-233.36056742,0.00022339,2]
[346098620,1734705077937,-21088.44703809,0.00022339,2]
[346098621,1734705077949,-2535.57168482,0.00022339,2]
[346098622,1734705077961,-5698.2477427,0.0002234,2]
[346098623,1734705077972,-942.28778608,0.0002234,2]
[346098624,1734705077984,-34184.16553974,0.0002234,2]
[346098625,1734705077996,-885.54807513,0.00022341,2]
[346098626,1734705078007,-942.28778608,0.00022341,2]
[346098627,1734705078019,-200.0,0.00022341,2]
[346098628,1734705078031,-942.28778608,0.00022342,2]
[346098629,1734705078043,-8668.87438177,0.00022343,2]
[346098630,1734705078055,-1035.80165343,0.00022343,2]
[346098631,1734705078067,-1035.80165343,0.00022343,2]
[346098632,1734705078079,-21088.44703809,0.00022344,2]
[346098633,1734705078091,-885.54807513,0.00022344,2]
[346098634,1734705078104,-30460.68837365,0.00022344,2]
[346098635,1734705078116,-21088.44703809,0.00022345,2]
[346098636,1734705078128,-30460.68837365,0.00022345,2]
[346098637,1734705078141,-233.36056742,0.00022347,2]
[346098638,1734705078153,-1077345.2917547,0.00022349,2]
[346098639,1734705078164,-21088.44703809,0.00022349,2]
[346098640,1734705078180,-200.0,0.00022349,2]
[346098641,1734705078193,-478.94542583,0.00022349,2]
[346098642,1734705078526,-911.8529516,0.00022349,2]
[346098643,1734705078544,-942.28778608,0.00022351,2]
[346098644,1734705078554,-212223.69402465,0.00022351,2]
[346098645,1734705078564,-1077345.2917547,0.00022352,2]
[346098646,1734705078574,-65013.12269927,0.00022352,2]
[346098647,1734705078584,-212223.69402465,0.00022352,2]
[346098648,1734705078593,-885.54807513,0.00022352,2]
[346098649,1734705078603,-30460.68837365,0.00022352,2]
[346098650,1734705078612,-420.40647141,0.00022353,2]
[346098651,1734705078624,-420.40647141,0.00022353,2]
[346098652,1734705078634,-420.40647141,0.00022354,2]
[346098653,1734705078644,-18040.26609231,0.00022354,2]
[346098654,1734705078653,-1035.80165343,0.00022354,2]
[346098655,1734705078663,-233.36056742,0.00022356,2]
[346098656,1734705078673,-166.979139,0.00022357,7]
[346098657,1734705078685,-166.979146,0.00022357,7]
[346098658,1734705078696,-290.955859,0.00022357,7]
[346098659,1734705078705,-290.955859,0.00022357,7]
[346098660,1734705078715,-845.12321779,0.00022358,2]
[346098661,1734705078724,-5698.2477427,0.00022358,2]
[346098662,1734705078734,-1077345.2917547,0.00022359,2]
[346098663,1734705078743,-620.88718439,0.00022359,2]
[346098664,1734705078753,-21088.44703809,0.00022359,2]
[346098665,1734705078762,-885.54807513,0.0002236,2]
[346098666,1734705078771,-620.88718439,0.0002236,2]
[346098667,1734705078781,-2535.57168482,0.0002236,2]
[346098668,1734705078791,-5698.2477427,0.00022361,2]
[346098669,1734705078800,-942.28778608,0.00022362,2]
[346098670,1734705078810,-2535.57168482,0.00022363,2]
[346098671,1734705078819,-478.94542583,0.00022363,2]
[346098672,1734705078829,-15212.65858269,0.00022364,2]
[346098673,1734705078838,-620.88718439,0.00022364,2]
[346098674,1734705078848,-478.94542583,0.00022365,2]
[346098675,1734705078858,-18040.26609231,0.00022365,2]
[346098676,1734705078867,-34184.16553974,0.00022365,2]
[346098677,1734705078877,-65013.12269927,0.00022365,2]
[346098678,1734705078887,-1035.80165343,0.00022365,2]
[346098679,1734705078897,-911.8529516,0.00022365,2]
[346098680,1734705078907,-30460.68837365,0.00022366,2]
[346098681,1734705078918,-911.8529516,0.00022366,2]
[346098682,1734705078931,-885.54807513,0.00022366,2]
[346098683,1734705078943,-150.0,0.00022366,2]
[346098684,1734705078954,-8668.87438177,0.00022367,2]
[346098685,1734705078964,-15212.65858269,0.00022367,2]
[346098686,1734705078974,-420.40647141,0.00022367,2]
[346098687,1734705078983,-5698.2477427,0.00022369,2]
[346098688,1734705078993,-249.79621669,0.0002237,2]
[346098689,1734705079003,-911.8529516,0.0002237,2]
[346098690,1734705079012,-1035.80165343,0.00022371,2]
[346098691,1734705079022,-249.79621669,0.00022372,2]
[346098692,1734705079032,-18040.26609231,0.00022372,2]
[346098693,1734705079041,-15212.65858269,0.00022373,2]
[346098694,1734705079051,-2535.57168482,0.00022374,2]
[346098695,1734705079061,-420.40647141,0.00022374,2]
[346098696,1734705079071,-1035.80165343,0.00022375,2]
[346098697,1734705079081,-478.94542583,0.00022376,2]
[346098698,1734705079091,-65013.12269927,0.00022377,2]
[346098699,1734705079101,-200.0,0.00022377,2]
[346098700,1734705079111,-233.36056742,0.00022377,2]
[346098701,1734705079120,-1077345.2917547,0.00022377,2]
[346098702,1734705079130,-233.36056742,0.00022377,2]
[346098703,1734705079140,-15212.65858269,0.00022377,2]
[346098704,1734705079150,-65013.12269927,0.00022377,2]
[346098705,1734705079159,-222.369391,0.00022378,2]
[346098706,1734705079169,-151.713476,0.00022378,2]
[346098707,1734705079180,-8668.87438177,0.00022379,2]
[346098708,1734705079189,-620.88718439,0.00022379,2]
[346098709,1734705079200,-5698.2477427,0.00022379,2]
[346098710,1734705079209,-18040.26609231,0.00022381,2]
[346098711,1734705079220,-200.0,0.00022382,2]
[346098712,1734705079229,-620.88718439,0.00022382,2]
[346098713,1734705079239,-420.40647141,0.00022382,2]
[346098714,1734705079249,-34184.16553974,0.00022383,2]
[346098715,1734705079259,-249.79621669,0.00022383,2]